bitfinex/quotes_ETHUSD_20250715
["timestamp","ask_amount","ask_price","bid_price","bid_amount"]
[1752579794785,0.462,2972.5,2972.0,3.36473755]
[1752579794786,10.7756,2972.4,2971.8,3.36492422]
[1752579795088,0.7756,2972.1,2971.9,0.168]
[1752579795290,0.7756,2972.1,2971.9,3.36479108]
[1752579795493,0.462,2972.0,2971.9,3.36479108]
[1752579796396,0.7756,2972.1,2972.0,3.36473755]
[1752579796989,10.168,2972.5,2972.4,3.36428475]
[1752579797387,11.4056,2972.5,2972.3,3.36432552]
[1752579797704,0.462,2972.4,2972.3,3.36432552]
[1752579798056,0.462,2972.4,2972.2,3.36449231]
[1752579798311,0.462,2972.4,2972.0,3.36470013]
[1752579798312,0.462,2972.4,2972.3,3.36439794]
[1752579800501,10.9436,2972.5,2972.4,3.36428475]
[1752579801461,10.9436,2972.5,2972.3,3.36434513]
[1752579802201,0.8041,2972.4,2971.9,0.168]
[1752579802422,0.8041,2972.2,2971.9,3.36474894]
[1752579802563,0.8041,2972.2,2971.7,5.301]
[1752579802564,0.8041,2972.2,2972.0,3.36472182]
[1752579805024,0.8041,2972.2,2971.9,3.36479461]
[1752579805716,0.462,2972.1,2971.8,3.36495233]
[1752579806015,0.462,2972.1,2971.9,3.36477655]
[1752579806181,0.462,2972.1,2972.0,3.36473755]
[1752579806507,0.8041,2972.2,2971.9,3.3647905]
[1752579806714,1.23403046,2972.2,2972.0,3.36468569]
[1752579806915,1.23403046,2972.2,2971.8,3.36496399]
[1752579806916,1.23403046,2972.2,2972.1,3.36462433]
[1752579807477,1.69603046,2972.2,2972.1,3.36462433]
[1752579808322,0.8041,2972.2,2972.1,3.36462433]
[1752579808527,15.133,2972.2,2972.1,3.36462433]
[1752579808823,10.462,2972.2,2972.1,3.36462433]
[1752579809578,10.0,2972.1,2971.9,0.168]
[1752579809833,0.4704,2972.1,2972.0,3.36467979]
[1752579810046,5.6034,2972.1,2972.0,3.36467979]
[1752579810231,15.301,2972.3,2972.2,3.36451113]
[1752579810381,15.133,2972.3,2972.2,3.36451113]
[1752579811109,15.6034,2972.3,2972.2,3.36451113]
[1752579812404,15.6034,2972.3,2971.9,0.168]
[1752579812609,15.6034,2972.3,2971.8,5.133]
[1752579812610,0.7894,2972.1,2971.8,3.36495979]
[1752579812783,10.0,2972.0,2971.9,3.36475249]
[1752579812984,10.4704,2972.0,2971.9,3.36475249]
[1752579816184,10.0,2972.0,2971.9,3.36475249]
[1752579817424,1.4174,2972.3,2971.9,3.36475249]
[1752579817644,1.2494,2972.5,2972.4,3.36428475]
[1752579817787,10.0,2972.5,2972.4,3.36428475]
[1752579817992,15.133,2972.5,2972.4,3.36428475]
[1752579818320,15.6034,2972.5,2972.4,3.36428475]
[1752579821171,15.6024,2972.5,2972.4,3.36428475]
[1752579822551,10.0,2972.5,2972.4,3.36428475]
[1752579822786,15.132,2972.5,2972.4,3.36428475]
[1752579823875,10.0,2972.5,2972.4,3.36428475]
[1752579824028,15.132,2972.5,2972.4,3.36428475]
[1752579826363,10.0,2972.5,2972.4,3.36428475]
[1752579826550,15.132,2972.5,2972.4,3.36428475]
[1752579826733,15.6024,2972.5,2972.4,3.36428475]
[1752579826971,10.4704,2972.5,2972.4,3.36428475]
[1752579827143,15.6024,2972.5,2972.4,3.36428475]
[1752579827671,10.4704,2972.5,2972.4,3.36428475]
[1752579827855,15.6024,2972.5,2972.4,3.36428475]
[1752579828872,15.132,2972.5,2972.4,3.36428475]
[1752579829376,5.132,2972.5,2972.4,3.36428475]
[1752579831778,10.002,2972.6,2972.5,3.36417157]
[1752579831930,15.6034,2972.6,2972.5,3.36417157]
[1752579832131,16.4261,2972.6,2971.9,0.001]
[1752579832342,1.4611,2972.5,2972.3,3.36434338]
[1752579832577,5.6014,2972.4,2972.3,3.36434338]
[1752579832731,5.6014,2972.4,2972.1,3.36452597]
[1752579832932,0.6384,2972.3,2972.1,3.36452597]
[1752579833127,5.6014,2972.2,2972.1,3.36452597]
[1752579833669,12.12916321,2972.2,2972.1,3.36452597]
[1752579836249,12.93886321,2972.2,2972.1,3.36452597]
[1752579837136,12.93886321,2972.2,2972.0,3.36464531]
[1752579837335,0.4704,2972.1,2972.0,3.36464531]
[1752579837537,10.4704,2972.1,2972.0,3.36464531]
[1752579837937,10.4704,2972.1,2972.0,3.36473755]
[1752579838137,10.4704,2972.1,2971.9,3.36579461]
[1752579838377,15.6014,2972.0,2971.9,3.36579461]
[1752579842085,15.131,2972.0,2971.9,3.36579461]
[1752579842453,15.5787,2972.0,2971.9,3.36579461]
[1752579843656,15.131,2972.0,2971.9,3.36579461]
[1752579843854,0.787,2972.5,2972.4,3.36428475]
[1752579844173,5.299,2972.5,2972.4,3.36428475]
[1752579844361,1.2347,2972.7,2972.5,3.36417157]
[1752579844583,5.133,2972.6,2972.5,3.36417157]
[1752579844790,5.5807,2972.6,2972.5,3.36417157]
[1752579844990,15.5807,2972.6,2972.5,3.36417157]
[1752579845300,16.30431603,2972.6,2972.5,3.36417157]
[1752579849370,15.85561603,2972.6,2972.5,3.36417157]
[1752579849709,10.72561603,2972.6,2972.5,3.36417157]
[1752579849882,15.132,2972.6,2972.5,3.36417157]
[1752579850792,10.002,2972.6,2972.5,3.36417157]
[1752579851111,15.132,2972.6,2972.5,3.53217157]
[1752579851508,15.5797,2972.6,2972.5,3.36417157]
[1752579857849,15.132,2972.6,2972.5,3.36417157]
[1752579858603,15.5797,2972.6,2972.5,3.36417157]
[1752579858820,15.5787,2972.6,2972.5,3.36417157]
[1752579859061,15.131,2972.6,2972.5,3.36417157]
[1752579860436,15.5787,2972.6,2972.5,3.36417157]
[1752579861182,15.5787,2972.6,2972.5,3.36517157]
[1752579862499,15.131,2972.6,2972.5,3.36517157]
[1752579864084,10.002,2972.6,2972.5,3.36517157]
[1752579864285,10.002,2972.6,2972.5,4.5272172]
[1752579864442,0.002,2972.6,2972.5,4.5272172]
[1752579864968,0.002,2972.6,2972.5,9.6562172]
[1752579866357,0.002,2972.6,2972.5,9.1839172]
[1752579866682,0.002,2972.6,2972.5,9.6562172]
[1752579866883,0.002,2972.6,2972.5,8.49317157]
[1752579867186,0.002,2972.6,2972.5,3.36517157]
[1752579877730,0.4324,2972.6,2972.5,0.001]
[1752579877905,1.3804,2972.6,2972.5,0.001]
[1752579879536,6.5074,2972.6,2972.5,0.001]
[1752579879836,6.5074,2972.6,2972.5,3.36517157]
[1752579880329,0.95,2972.6,2972.5,3.36517157]
[1752579880635,15.297,2972.6,2972.5,3.36517157]
[1752579882406,15.129,2972.6,2972.5,3.36517157]
[1752579885311,10.002,2972.6,2972.5,3.36517157]
[1752579886042,10.4324,2972.6,2972.5,3.36517157]
[1752579892149,10.002,2972.6,2972.5,3.36517157]
[1752579899789,0.002,2972.6,2972.5,5.02555625]
[1752579900090,0.002,2972.6,2972.5,10.15155625]
[1752579900389,0.002,2972.6,2972.5,10.31955625]
[1752579900963,0.002,2972.9,2972.8,3.36383207]
[1752579901139,1e-08,2972.9,2972.8,9.59200871]
[1752579901385,1e-08,2972.9,2972.8,9.76000871]
[1752579908686,1e-08,2972.9,2972.8,10.31000871]
[1752579910680,6.96013837,2972.9,2972.8,3.36383207]
[1752579911199,1e-08,2972.9,2972.8,3.36383207]
[1752579911561,1e-08,2972.9,2972.8,3.82687039]
[1752579911761,1e-08,2972.9,2972.8,3.36383207]
[1752579912004,6.52663837,2972.9,2972.8,8.48783207]
[1752579912203,6.96013837,2972.9,2972.8,3.36383207]
[1752579914403,10.43350001,2972.9,2972.8,3.36383207]
[1752579916301,10.00000001,2972.9,2972.8,3.36383207]
[1752579917912,1e-08,2972.9,2972.8,8.48783207]
[1752579918113,1e-08,2972.9,2972.8,9.71594871]
[1752579918618,1e-08,2972.9,2972.8,10.14534871]
[1752579920643,1e-08,2972.9,2972.8,9.71594871]
[1752579920856,1e-08,2972.9,2972.8,9.88394871]
[1752579922327,1e-08,2972.9,2972.8,3.53183207]
[1752579922501,0.43350001,2972.9,2972.8,3.53183207]
[1752579926535,0.43350001,2972.9,2972.8,3.8475319]
[1752579927212,1.19710001,2972.9,2972.8,0.31569983]
[1752579927425,11.19710001,2972.9,2972.8,0.31569983]
[1752579927637,11.19710001,2972.9,2972.8,3.6795319]
[1752579927948,11.19710001,2972.9,2972.8,0.31569983]
[1752579928130,11.19710001,2972.9,2972.8,3.6795319]
[1752579928505,11.19710001,2972.9,2972.8,0.31569983]
[1752579929145,11.19710001,2972.9,2972.8,3.6795319]
[1752579929354,11.19710001,2972.9,2972.8,0.31569983]
[1752579930046,16.32010001,2972.9,2972.8,0.31569983]
[1752579931642,16.32010001,2972.9,2972.8,0.001]
[1752579932256,19.68381893,2972.9,2972.8,0.001]
[1752579933194,49.68381893,2972.9,2972.8,0.001]
[1752579933371,3.3640584,2972.6,2972.5,0.001]
[1752579933574,47.50789534,2972.6,2972.5,0.001]
[1752579933772,47.96829534,2972.6,2972.5,0.001]
[1752579933973,47.96829534,2972.6,2971.9,0.001]
[1752579933974,0.8046,2972.1,2971.9,0.001]
[1752579934173,18.65573755,2972.0,2971.9,0.001]
[1752579934368,16.86949188,2972.0,2971.9,0.001]
[1752579934693,46.86949188,2972.0,2971.9,0.001]
[1752579935046,50.23422943,2972.0,2971.9,0.001]
[1752579935356,46.86949188,2972.0,2971.9,0.001]
[1752579935942,50.23422943,2972.0,2971.9,0.001]
[1752579937567,46.86949188,2972.0,2971.9,0.001]
[1752579938188,50.23422943,2972.0,2971.9,0.001]
[1752579938995,4.16857722,2971.7,2971.6,0.001]
[1752579939165,45.81921558,2971.7,2971.6,0.001]
[1752579939496,46.27961558,2971.7,2971.6,0.001]
[1752579939701,42.91453836,2971.7,2971.6,0.001]
[1752579940291,12.91453836,2971.7,2971.6,0.001]
[1752579941175,1.68959858,2971.9,2971.6,0.001]
[1752579941380,10.0,2971.7,2971.6,3.36617895]
[1752579942164,15.5844,2971.7,2971.6,3.36617895]
[1752579942567,15.124,2971.7,2971.6,3.36617895]
[1752579945927,10.0,2971.7,2971.6,3.36617895]
[1752579946208,15.124,2971.7,2971.6,3.36617895]
[1752579948127,0.168,2971.8,2971.7,3.36507722]
[1752579948320,15.292,2971.8,2971.7,3.36507722]
[1752579948487,10.168,2971.8,2971.7,3.36507722]
[1752579948689,10.0,2971.8,2971.7,3.36507722]
[1752579948898,15.124,2971.8,2971.7,4.03830284]
[1752579949986,15.124,2971.8,2971.7,3.36507722]
[1752579950596,10.0,2971.8,2971.7,3.36507722]
[1752579950964,15.124,2971.8,2971.7,3.81657722]
[1752579951125,10.0,2971.8,2971.7,3.81657722]
[1752579951698,9.0481,2972.5,2971.7,3.81657722]
[1752579952029,0.9257,2972.5,2972.4,3.36428475]
[1752579952202,5.124,2972.5,2972.4,3.36428475]
[1752579952399,15.124,2972.5,2972.4,3.36428475]
[1752579962345,15.575,2972.5,2972.4,3.36428475]
[1752579964341,15.124,2972.5,2972.4,3.36428475]
[1752579964753,15.575,2972.5,2972.4,3.36428475]
[1752579964951,15.124,2972.5,2972.4,3.36428475]
[1752579971147,15.575,2972.5,2972.4,3.36428475]
[1752579972455,16.5397,2972.5,2972.4,3.36428475]
[1752579972944,10.0,2972.4,2972.3,3.36434102]
[1752579973332,10.0,2972.4,2972.2,3.36447375]
[1752579973333,10.451,2972.4,2972.2,3.36444894]
[1752579973655,22.09963836,2972.3,2972.2,3.36444894]
[1752579976043,10.0,2972.2,2972.1,3.36456482]
[1752579976219,0.451,2972.2,2972.1,3.36456482]
[1752579976959,0.451,2972.2,2972.0,3.36467317]
[1752579977160,22.44893836,2972.1,2972.0,3.36467317]
[1752579977467,22.89993836,2972.1,2972.0,3.36467317]
[1752579977872,22.89993836,2972.1,2971.9,3.36480422]
[1752579978043,0.451,2972.0,2971.9,3.36480422]
[1752579980640,15.9223,2972.1,2972.0,3.36473755]
[1752579980840,16.3733,2972.1,2972.0,3.36473755]
[1752579982969,10.0,2972.0,2971.9,3.36476196]
[1752579983124,0.451,2972.0,2971.9,3.36476196]
[1752579983540,10.451,2972.0,2971.9,3.36476196]
[1752579983962,10.451,2972.0,2971.7,0.168]
[1752579984166,14.10306836,2972.1,2971.6,3.36616877]
[1752579984167,5.74,2971.9,2971.6,3.36616877]
[1752579984535,5.74,2971.9,2971.8,3.36496399]
[1752579984536,15.74,2971.9,2971.8,3.36496399]
[1752579985463,15.289,2971.9,2971.8,3.36496399]
[1752579986568,15.121,2971.9,2971.8,3.36496399]
[1752579987262,15.121,2971.9,2971.8,3.81006399]
[1752579987630,10.0,2971.9,2971.8,4.54447691]
[1752579988281,10.0,2971.9,2971.8,3.81006399]
[1752579989250,10.0,2971.9,2971.8,3.97806399]
[1752579990357,10.0,2971.9,2971.8,3.53296399]
[1752579991369,10.0,2971.9,2971.8,3.53396399]
[1752579995588,15.123,2972.1,2972.0,3.36473755]
[1752579999779,15.5824,2972.1,2972.0,3.36473755]
[1752580001054,17.22143,2972.1,2971.9,3.36478774]
[1752580001195,10.4594,2972.0,2971.9,3.36485076]
[1752580001378,11.2111,2972.0,2971.8,3.36596175]
[1752580001704,15.7474,2971.9,2971.8,3.36596175]
[1752580001894,16.14616046,2971.9,2971.8,3.36596175]
[1752580004998,10.56676046,2971.9,2971.8,3.36596175]
[1752580005199,16.14616046,2971.9,2971.8,0.001]
[1752580005371,22.67279882,2971.9,2971.8,0.001]
[1752580006004,23.46259882,2971.9,2971.8,0.001]
[1752580006220,56.82744958,2971.9,2971.8,0.001]
[1752580006417,4.14627722,2971.7,2971.6,0.001]
[1752580006593,40.90530722,2971.7,2971.6,0.001]
[1752580006915,38.72292695,2971.7,2971.6,0.001]
[1752580007102,37.99963,2971.7,2971.6,0.001]
[1752580007520,32.42023,2971.7,2971.6,0.001]
[1752580007704,7.99963,2971.7,2971.6,0.001]
[1752580010116,14.52626836,2971.7,2971.6,0.001]
[1752580011715,14.52626836,2971.7,2971.6,3.36619046]
[1752580012432,14.52626836,2971.7,2971.6,0.001]
[1752580012629,15.24866981,2971.7,2971.6,0.001]
[1752580012831,10.12866981,2971.7,2971.6,0.001]
[1752580013009,15.24866981,2971.7,2971.6,0.001]
[1752580014129,45.24866981,2971.7,2971.6,0.001]
[1752580014509,45.24835045,2971.7,2971.6,0.001]
[1752580015131,44.52626836,2971.7,2971.6,0.001]
[1752580015333,15.24835042,2971.7,2971.6,0.001]
[1752580016407,14.69775586,2971.7,2971.6,0.001]
[1752580016626,15.4195489,2971.7,2971.6,0.001]
[1752580017339,14.69775586,2971.7,2971.6,0.001]
[1752580018751,15.4194613,2971.7,2971.6,0.001]
[1752580020219,9.8400613,2971.7,2971.6,0.001]
[1752580020441,14.4399738,2971.7,2971.6,0.001]
[1752580021067,0.55,2971.6,2971.3,0.001]
[1752580021270,20.67235533,2971.4,2971.3,0.001]
[1752580021482,3.36564351,2971.2,2970.6,0.001]
[1752580021647,49.26594351,2971.2,2970.6,0.001]
[1752580021850,0.7803,2970.9,2970.6,0.001]
[1752580022176,14.69650998,2970.7,2970.6,0.001]
[1752580022331,49.81650998,2970.7,2970.6,0.001]
[1752580022532,50.24910998,2970.7,2970.6,0.001]
[1752580022757,52.27110998,2970.7,2970.6,0.001]
[1752580022961,52.99199298,2970.7,2970.6,0.001]
[1752580023164,53.39075344,2970.7,2970.6,0.001]
[1752580024177,48.27075344,2970.7,2970.6,0.001]
[1752580024335,53.39175344,2970.7,2970.6,0.001]
[1752580025882,51.36975344,2970.7,2970.6,0.001]
[1752580026708,51.36745471,2970.7,2970.6,0.001]
[1752580027292,47.28266046,2970.7,2970.6,0.001]
[1752580027690,50.64887044,2970.7,2970.6,0.001]
[1752580031733,50.64887044,2970.7,2970.4,0.001]
[1752580031734,3.36643662,2970.5,2970.4,0.001]
[1752580031940,54.06136836,2970.5,2970.4,0.001]
[1752580032282,54.49396836,2970.5,2970.4,0.001]
[1752580032582,57.86040498,2970.5,2970.4,0.001]
[1752580033097,4.12477664,2970.2,2970.1,0.04]
[1752580033294,55.773415,2970.2,2970.1,0.04]
[1752580033495,56.60477546,2970.2,2970.1,0.04]
[1752580034935,44.5235371,2970.2,2970.1,0.04]
[1752580035228,53.23799882,2970.2,2970.1,0.04]
[1752580035721,55.25999882,2970.2,2970.1,0.04]
[1752580035929,52.04739882,2970.2,2970.1,0.04]
[1752580036436,22.04739882,2970.2,2970.1,0.04]
[1752580036845,10.0,2970.2,2970.1,0.04]
[1752580037144,15.122,2970.2,2970.1,0.04]
[1752580037846,10.0,2970.2,2970.1,3.40689]
[1752580038137,15.122,2970.2,2970.1,3.86979]
[1752580038336,15.122,2970.2,2970.1,3.40689]
[1752580039090,21.64863836,2970.2,2970.1,0.04]
[1752580039286,22.08123836,2970.2,2970.1,0.04]
[1752580041084,16.52663836,2970.2,2970.1,0.04]
[1752580041289,15.122,2970.2,2970.1,3.86979]
[1752580042323,10.0,2970.2,2970.1,3.86979]
[1752580042694,15.122,2970.2,2970.1,3.86979]
[1752580044736,3.80084272,2970.7,2970.6,3.3663233]
[1752580044737,0.002,2970.7,2970.6,3.3663233]
[1752580044887,0.002,2970.7,2970.1,4.59356835]
[1752580044888,5.124,2970.7,2970.3,3.82953382]
[1752580045228,5.124,2970.7,2970.3,3.36656772]
[1752580045229,10.0,2970.6,2970.3,3.36656772]
[1752580045407,5.123,2970.5,2970.4,3.36651254]
[1752580047807,0.002,2970.7,2970.3,3.36665298]
[1752580048003,5.123,2970.6,2970.5,3.36643662]
[1752580049046,5.123,2970.6,2970.4,3.36649632]
[1752580049941,10.0,2970.4,2970.3,3.36662743]
[1752580050133,15.124,2970.4,2970.3,3.36662743]
[1752580051352,15.125,2970.4,2970.3,3.82462743]
[1752580051553,6.52863836,2970.7,2970.4,3.3664919]
[1752580051753,15.125,2970.6,2970.5,3.36643662]
[1752580052232,15.84687405,2970.6,2970.5,3.36643662]
[1752580052744,0.72187405,2970.6,2970.5,3.36643662]
[1752580053063,5.124,2970.6,2970.5,4.49773423]
[1752580053220,5.124,2970.6,2970.5,3.82443662]
[1752580053421,10.0,2970.5,2970.3,3.36659878]
[1752580053623,15.124,2970.4,2970.3,3.36659878]
[1752580054155,15.124,2970.4,2970.3,3.82459878]
[1752580056419,10.0,2970.4,2970.3,3.82459878]
[1752580056637,10.0,2970.4,2970.3,4.54773632]
[1752580056835,0.002,2970.7,2970.6,3.3663233]
[1752580057261,0.002,2970.7,2970.6,3.8243233]
[1752580057856,0.002,2970.7,2970.6,4.13953915]
[1752580058261,0.002,2970.7,2970.6,3.8243233]
[1752580058430,0.002,2970.7,2970.6,4.85845535]
[1752580061067,0.002,2970.7,2970.6,4.89211858]
[1752580062866,5.132,2971.4,2971.3,3.36553023]
[1752580063085,5.132,2971.4,2971.3,3.68058735]
[1752580065954,6.8583,2971.4,2971.3,3.68058735]
[1752580066154,5.6454,2971.4,2971.3,3.68058735]
[1752580067277,0.002,2971.6,2971.4,3.36541697]
[1752580067600,0.002,2971.6,2971.5,3.68036083]
[1752580068550,0.002,2971.6,2971.5,4.13836083]
[1752580068750,0.002,2971.6,2971.5,3.68036083]
[1752580073392,0.002,2971.6,2971.5,4.13836083]
[1752580076616,0.002,2971.6,2971.5,3.68036083]
[1752580078022,0.002,2971.6,2971.5,4.13836083]
[1752580078722,0.002,2971.6,2971.5,3.68036083]
[1752580078913,0.002,2971.6,2971.5,4.13836083]
[1752580079627,0.002,2971.6,2971.5,4.13764031]
[1752580081154,0.002,2971.6,2971.5,3.67964031]
[1752580081463,0.002,2971.6,2971.5,4.15334031]
[1752580081600,0.002,2971.6,2971.5,4.15349986]
[1752580082635,0.002,2971.6,2971.5,3.67979986]
[1752580084720,0.002,2971.6,2971.5,4.15349986]
[1752580088221,0.002,2971.6,2971.5,5.41809134]
[1752580088553,10.002,2971.8,2971.7,3.36507722]
[1752580088757,10.002,2971.8,2971.7,4.15327337]
[1752580088976,0.002,2971.8,2971.7,4.15327337]
[1752580090862,0.002,2971.8,2971.7,3.67957337]
[1752580091064,1e-08,2971.9,2971.8,3.36496399]
[1752580091232,1e-08,2971.9,2971.8,9.27616014]
[1752580091431,5.124,2972.7,2972.6,3.3640584]
[1752580091671,5.124,2972.7,2972.6,3.67855455]
[1752580091822,15.124,2972.7,2972.6,3.67855455]
[1752580092227,5.124,2972.7,2972.6,3.67855455]
[1752580093077,5.5524,2972.7,2972.6,3.67855455]
[1752580093230,15.5524,2972.7,2972.6,3.67855455]
[1752580093421,15.5524,2972.7,2972.6,3.67909176]
[1752580093629,10.0,2972.7,2972.6,4.8967172]
[1752580094521,0.002,2972.8,2972.7,3.36394523]
[1752580094725,0.4304,2972.8,2972.7,3.67897859]
[1752580094966,15.5654,2972.8,2972.7,3.67897859]
[1752580095295,16.3777,2972.8,2972.7,0.31503336]
[1752580096255,50.61962934,2972.8,2972.7,0.31503336]
[1752580097065,10.8209,2972.5,2972.1,3.36456269]
[1752580097273,16.52663836,2972.3,2972.1,3.36456269]
[1752580097482,15.136,2972.2,2972.1,3.36456269]
[1752580097652,15.5644,2972.2,2972.1,3.36456269]
[1752580098776,10.0,2972.1,2972.0,3.36468782]
[1752580098937,15.136,2972.2,2972.0,3.36468782]
[1752580099135,10.4284,2972.1,2972.0,3.36468782]
[1752580099979,10.4284,2972.1,2971.8,3.36487377]
[1752580100183,12.86533836,2972.0,2971.9,3.36485076]
[1752580102246,12.43693836,2972.0,2971.9,3.36485076]
[1752580102446,12.86533836,2972.0,2971.9,3.36485076]
[1752580102990,0.002,2972.2,2972.1,3.36462433]
[1752580103145,15.136,2972.2,2972.1,3.36462433]
[1752580104147,10.002,2972.2,2972.1,3.36462433]
[1752580104372,15.136,2972.2,2972.1,3.36462433]
[1752580107382,15.134,2972.2,2972.1,3.36462433]
[1752580107558,6.3395,2972.2,2972.0,3.36468447]
[1752580107761,6.95503836,2972.1,2972.0,3.36468447]
[1752580107962,16.95503836,2972.1,2972.0,3.36468447]
[1752580109689,10.0,2972.1,2972.0,3.36468447]
[1752580110064,15.131,2972.1,2972.0,3.36468447]
[1752580111276,10.0,2972.1,2972.0,4.082577]
[1752580111483,10.0,2972.1,2972.0,3.36468447]
[1752580112453,15.13,2972.1,2972.0,3.36468447]
[1752580112653,15.13,2972.1,2972.0,3.81408447]
[1752580113267,10.0,2972.1,2972.0,3.81408447]
[1752580116093,10.0,2972.1,2972.0,3.36468447]
[1752580116307,10.4486,2972.1,2972.0,3.36468447]
[1752580116555,10.0,2972.1,2972.0,3.36468447]
[1752580120806,10.4486,2972.1,2972.0,3.36468447]
[1752580121707,10.4486,2972.1,2971.6,5.13]
[1752580122020,5.5776,2972.0,2971.9,3.36484822]
[1752580126078,5.5776,2972.0,2971.8,3.36492989]
[1752580126284,0.4486,2971.9,2971.7,3.3650139]
[1752580126512,5.5766,2971.8,2971.7,3.3650139]
[1752580126713,5.5756,2971.8,2971.7,3.3650139]
[1752580127523,6.4002,2971.8,2971.7,3.3650139]
[1752580128120,5.127,2971.8,2971.7,3.3650139]
[1752580130013,5.5756,2971.8,2971.7,3.3650139]
[1752580130608,15.5756,2971.8,2971.7,3.3650139]
[1752580131906,15.5756,2971.8,2971.6,3.36514738]
[1752580132208,0.4486,2971.7,2971.5,3.36524974]
[1752580132421,21.65363836,2971.8,2971.5,3.36530371]
[1752580132616,10.4486,2971.7,2971.5,3.36530371]
[1752580133244,0.4486,2971.6,2971.5,3.36530371]
[1752580133541,10.4486,2971.7,2971.6,3.36519046]
[1752580133834,10.0,2971.7,2971.6,3.36519046]
[1752580137026,10.4486,2971.7,2971.5,3.36524646]
[1752580137189,0.4486,2971.6,2971.5,3.36524646]
[1752580138102,0.4486,2971.6,2970.9,3.8153039]
[1752580138103,5.5706,2971.6,2970.9,3.8153039]
[1752580138295,5.5706,2971.6,2970.7,0.001]
[1752580138296,5.122,2971.6,2971.4,3.36533461]
[1752580138509,0.4486,2971.5,2971.4,3.36533461]
[1752580139429,10.0,2971.4,2971.0,0.38153039]
[1752580139645,16.3527,2971.3,2971.2,0.168]
[1752580140059,16.3527,2971.3,2971.1,3.36569989]
[1752580140348,0.4329,2971.2,2971.0,3.36581895]
[1752580140556,5.121,2971.2,2971.1,3.36575679]
[1752580141098,5.121,2971.2,2971.0,3.36582995]
[1752580141601,5.5539,2971.2,2971.1,3.36575679]
[1752580141952,5.121,2971.2,2971.1,3.36575679]
[1752580144199,3.36501124,2971.8,2971.1,3.36575679]
[1752580144200,1.71636677,2972.1,2971.1,9.59598427]
[1752580144406,15.5549,2972.0,2971.6,3.36515956]
[1752580144704,1.15415559,2971.9,2971.6,3.36514512]
[1752580144930,10.0,2971.7,2971.6,3.36514512]
[1752580145941,1.2461,2972.1,2971.8,3.36492589]
[1752580146243,10.0,2971.9,2971.8,3.36492589]
[1752580147637,10.4329,2971.9,2971.8,3.36492589]
[1752580148040,10.4329,2971.9,2971.2,3.36555845]
[1752580148342,10.0,2971.7,2971.3,5.131]
[1752580148540,15.5639,2971.6,2971.5,3.36530371]
[1752580148962,15.131,2971.6,2971.5,3.36530371]
[1752580151440,15.5639,2971.6,2971.5,3.36530371]
[1752580152631,10.0,2971.5,2971.4,3.3653149]
[1752580152827,47.73233836,2971.5,2970.8,3.36609667]
[1752580153078,6.52663836,2970.9,2970.8,3.36609667]
[1752580153275,11.65663836,2970.9,2970.8,3.36609667]
[1752580153794,5.13,2970.9,2970.8,3.36609667]
[1752580155843,17.74233836,2971.3,2971.1,3.3656534]
[1752580156045,15.131,2971.2,2971.1,3.3656534]
[1752580156662,15.5639,2971.2,2971.1,3.3656534]
[1752580156974,10.0,2971.1,2971.0,3.36581193]
[1752580157671,15.5639,2971.2,2971.1,3.36575679]
[1752580157970,10.0,2971.1,2971.0,3.36581976]
[1752580158770,5.5639,2971.2,2971.1,3.36575679]
[1752580159349,10.0,2971.1,2971.0,3.36581976]
[1752580159573,10.0,2971.1,2970.7,8.49813476]
[1752580159956,12.08953836,2971.0,2970.7,0.001]
[1752580160169,0.7914,2970.9,2970.7,3.36715561]
[1752580160559,0.7914,2970.9,2970.8,3.36609667]
[1752580161295,1.2243,2970.9,2970.7,3.36715228]
[1752580161660,0.4329,2970.8,2970.7,3.36715228]
[1752580163260,0.7914,2970.9,2970.8,3.36609667]
[1752580163760,1.2243,2970.9,2970.8,3.36609667]
[1752580165579,11.65663836,2971.0,2970.9,3.36598337]
[1752580165871,12.08953836,2971.0,2970.9,3.36598337]
[1752580166050,11.65663836,2971.0,2970.9,3.36598337]
[1752580166578,12.08953836,2971.0,2970.9,3.36598337]
[1752580166763,12.08953836,2971.0,2970.8,3.36604593]
[1752580166963,5.13,2971.0,2970.9,3.36598337]
[1752580168042,0.8114,2971.1,2971.0,3.36587007]
[1752580168242,6.3703,2971.1,2971.0,3.36587007]
[1752580168678,5.9374,2971.1,2971.0,3.36587007]
[1752580170583,0.7557,2971.5,2971.0,3.36587007]
[1752580170878,10.0,2971.3,2971.0,3.36580855]
[1752580171044,10.0,2971.1,2971.0,3.36580855]
[1752580172365,0.7557,2971.5,2971.2,3.36557439]
[1752580172565,10.0,2971.3,2971.2,3.36557439]
[1752580173080,10.0,2971.6,2971.3,3.36543911]
[1752580173295,15.5556,2971.5,2971.4,3.36540153]
[1752580173474,15.5556,2971.5,2971.3,3.3654718]
[1752580175274,15.5556,2971.5,2971.4,3.36541697]
[1752580175475,15.125,2971.5,2971.4,3.36541697]
[1752580176193,15.125,2971.5,2971.3,3.36547535]
[1752580176398,15.125,2971.5,2971.4,3.36541697]
[1752580177485,15.84706948,2971.5,2971.4,3.36541697]
[1752580178578,16.27766948,2971.5,2971.4,3.36541697]
[1752580179412,10.72206948,2971.5,2971.4,3.36541697]
[1752580179697,15.123,2971.5,2971.4,3.36541697]
[1752580184003,10.0,2971.5,2971.4,3.36541697]
[1752580184200,15.123,2971.5,2971.4,4.0385062]
[1752580184520,10.0,2971.5,2971.4,4.4824062]
[1752580185216,7.83,2971.9,2971.5,3.36530371]
[1752580185415,17.83,2971.9,2971.8,3.36496399]
[1752580185616,15.84566763,2971.9,2971.8,3.36496399]
[1752580185780,0.72266763,2971.9,2971.8,3.80886399]
[1752580185985,15.123,2972.0,2971.9,3.36485076]
[1752580186215,15.84566763,2972.0,2971.9,3.36485076]
[1752580187795,10.72266763,2972.0,2971.9,3.36485076]